Cogmind - Beta 16.1 @@@ ROGUE MODE // 2026.02.12 @ 01:27:00 Player: Rudrot Result: Destroyed by H-55 Commando with Gauss Rifle Performance ------------- Evolutions (2) 1000 Regions Visited (4) 800 Robots Destroyed (78) 390 Value Destroyed (2261) 2261 Prototype IDs (7) 140 Alien Tech Used (0) 0 Bonus (143) 143 TOTAL SCORE: 4734 Bonus ------- High Alert Combat Kills 143 Cogmind --------- Core Integrity 0/550 Matter 5/300 Energy 100/100 System Corruption 0% Temperature Cool (0) Movement Core (50) Location -8/Storage Parts ------- > --- POWER (1) -------- (None) > --- PROPULSION (2) --- (None) > --- UTILITY (5) ------ Visual Processing Unit Signal Interpreter > --- WEAPON (3) ------- (None) > --- INVENTORY (5) ---- Heavy Ion Engine Armored Wheel Improved Grenade Launcher Improved Grenade Launcher Peak State ------------ > --- POWER ------------ Heavy Ion Engine > --- PROPULSION ------- Armored Wheel Armored Wheel > --- UTILITY ---------- Visual Processing Unit Signal Interpreter Seismic Detector Hardened Medium Armor Plating Shock Absorption System > --- WEAPON ----------- Flak Cannon Advanced EMP Blaster Improved Grenade Launcher > --- INVENTORY -------- Armored Wheel Signal Interpreter Improved Grenade Launcher Remote Datajack [Rating: 29] Favorites ----------- Power Ion Engine Engine Ion Engine Power Core Light Nuclear Core Propulsion Armored Wheel Wheel Armored Wheel Utility Signal Interpreter Device Seismic Detector Storage Small Storage Unit Processor Signal Interpreter Protection Weapon Shielding Weapon Improved Grenade Launcher Energy Gun Medium Laser Ballistic Cannon Improved Light Cannon Launcher Improved Grenade Launcher Special Weapon Remote Datajack Build | -11 -10 -9 -8 -8 ------- Run | Yrd Mat Mat Mat Sto Slots Evolved 4 | . . 2 2 . Power . | . . . . . Propulsion . | . . . . . Utility 3 | . . 2 1 . Weapon 1 | . . . 1 . Parts Attached 50 | 10 10 23 6 1 Power 10 | 2 3 5 . . Engine 9 | 2 2 5 . . Core 1 | . 1 . . . Reactor . | . . . . . Propulsion 11 | 2 3 5 1 . Treads . | . . . . . Leg . | . . . . . Wheel 11 | 2 3 5 1 . Hover . | . . . . . Flight . | . . . . . Utility 15 | 3 1 8 2 1 Device 5 | 2 . 2 1 . Storage 1 | 1 . . . . Processor 6 | . 1 4 . 1 Hackware . | . . . . . Protection 3 | . . 2 1 . Artifact . | . . . . . Weapon 14 | 3 3 5 3 . Energy Gun 4 | 3 1 . . . Energy Cannon . | . . . . . Ballistic Gun . | . . . . . Ballistic Cannon 2 | . . 1 1 . Launcher 7 | . 2 4 1 . Special Weapon 1 | . . . 1 . Impact Weapon . | . . . . . Slashing Weapon . | . . . . . Piercing Weapon . | . . . . . Special Melee Weapon . | . . . . . Unidentified Prototypes 1 | . . . 1 . Parts Lost 13 | . . 6 1 6 Power 2 | . . 2 . . Propulsion 1 | . . . . 1 Utility 8 | . . 3 1 4 Weapon 2 | . . 1 . 1 Highest Loss Streak 5 | . . 5 1 4 To Critical Strikes . | . . . . . Average Backups 4 | 2 4 4 3 3 Power . | . . . . . Propulsion 1 | 1 2 . 1 1 Utility 1 | . 1 1 1 . Weapon 1 | . . 2 . 1 Tool/Special . | . . . . . Unused Backups 1 | . 1 . . . Power . | . . . . . Propulsion 1 | . 1 . . . Utility . | . . . . . Weapon . | . . . . . Tool/Special . | . . . . . Average Slot Usage (%) 91 | . 99 93 84 74 Engine 9 | . 13 10 5 7 Wheel 22 | . 28 22 18 14 Device 11 | . 17 8 11 11 Processor 21 | . 10 30 18 17 Protection 4 | . . 3 9 7 Energy Gun 4 | . 15 . . . Ballistic Cannon 4 | . . 4 9 7 Launcher 12 | . 12 12 13 7 Peak Build Rating 29 | 9 9 19 29 27 Average Rating 14 | 6 7 15 20 18 On Entrance 11 | . 9 7 15 27 Avg Prop Armor Cover (%) . | . . . . . Naked Turns . | . . . . . Heaviest Build 38 | 14 12 18 38 38 Greatest Support 24 | 20 20 24 24 24 Greatest Overweight (x) 1 | . . . 1 1 Average Overweight (x) . | . . . . . Largest Inventory Capacity 8 | 8 5 5 5 5 Average Capacity 5 | 6 5 5 5 5 Most Carried 5 | 5 5 5 5 5 Average Carried 4 | 2 4 4 3 4 Final Capacity 5 | 5 5 5 5 5 Final Carried 5 | 5 5 5 3 4 Class Distribution -------------------- 55% | Mutant 18% | Bomber 18% | Skirmisher 7% | Scavenger-Mutant Dominant Class ---------------- Mutant | -10/Materials Mutant | -9/Materials Bomber | -8/Materials Mutant | -8/Storage Resources | -11 -10 -9 -8 -8 ----------- Run | Yrd Mat Mat Mat Sto Matter Collected 1760 | 300 230 974 256 . Remotely . | . . . . . Salvage Created 1889 | 193 444 870 377 5 Parts 128 | 12 31 62 23 . Haulers Intercepted 4 | . 1 2 1 . Recyclers Shooed 3 | 1 . 1 1 . Parts Field Recycled . | . . . . . Retrieved Matter . | . . . . . Parts Self-Destructed . | . . . . . Prevented . | . . . . . Parts Restored . | . . . . . Kills | -11 -10 -9 -8 -8 ------- Run | Yrd Mat Mat Mat Sto Combat Hostiles Destroyed 46 | . 10 27 9 . Guns 5 | . 5 . . . Cannons 5 | . . 3 2 . AOE 36 | . 5 24 7 . Classes Destroyed 13 | 2 4 6 1 . Worker 9 | . 1 8 . . Builder 3 | . 2 . 1 . Tunneler 6 | 5 . 1 . . Hauler 4 | . 1 2 1 . Recycler 2 | 1 . 1 . . Mechanic 1 | . . 1 . . Operator 3 | . . 2 . 1 Watcher 4 | . . 4 . . Grunt 28 | . 10 15 3 . Brawler 2 | . . 2 . . Duelist 2 | . . 2 . . Sentry 10 | . . 8 2 . Specialist 4 | . . . 4 . Best Kill Streak 7 | 3 3 7 4 1 Combat Bots Only 4 | . 2 3 4 . Max Kills in Single Turn 3 | 1 2 3 2 1 Gunslinging . | . . . . . Exploded 3 | . 2 3 2 . Melee . | . . . . . Uniques/NPCs Destroyed . | . . . . . Combat | -11 -10 -9 -8 -8 -------- Run | Yrd Mat Mat Mat Sto Hostile Shots Fired 257 | . 38 86 27 106 Missed 88 | . 14 33 9 32 Hits 169 | . 24 53 18 74 Projectile 169 | . 24 53 18 74 Critical Strikes 11 | . . 5 3 3 Actively Blocked 1 | . . . 1 . Part Disruptions 1 | . . 1 . . Damage Taken 2750 | . 326 1003 261 1160 Core 811 | . 123 133 72 483 Absorbed by Shields . | . . . . . Redirected to Shielding 80 | . . 52 28 . Ignored by Resistances 6 | . . . . 6 Regen/Repaired (Parts) 68 | . . . 68 . Core Remaining (%) 72 | 100 50 66 . . Volleys Fired 163 | 13 39 86 19 6 Largest 3 | 2 2 2 3 3 Hottest 109 | 90 100 72 109 109 Shots Fired 238 | 26 64 108 30 10 Gun 80 | 26 53 1 . . Cannon 71 | . . 48 19 4 Launcher 86 | . 11 59 11 5 Special 1 | . . . . 1 Kinetic 71 | . . 48 19 4 Thermal 80 | 26 53 1 . . Explosive 86 | . 11 59 11 5 Electromagnetic . | . . . . . Robot Hit Streak 11 | 5 8 11 3 3 Robot Miss Streak 13 | 4 3 4 13 6 Penetration Max . | . . . . . Secondary Targets 1 | . 1 . . . Max Gunslinging Chain 1 | . 1 . . . Shots Hit Robots 127 | 14 35 52 21 5 Core Hits 131 | 7 27 61 27 9 Critical Kills . | . . . . . Critical Parts Destroyed . | . . . . . Critical Strikes 5 | 1 2 2 . . Burn 3 | 1 2 . . . Blast 2 | . . 2 . . Melee Attacks . | . . . . . Impact . | . . . . . Slashing . | . . . . . Piercing . | . . . . . Sneak Attacks . | . . . . . Combat Hostiles . | . . . . . Follow-up Attacks . | . . . . . Damage Inflicted 5784 | 182 886 3304 949 463 Guns 595 | 182 413 . . . Cannons 840 | . . 501 254 85 Explosions 4349 | . 473 2803 695 378 Melee . | . . . . . Ramming . | . . . . . Kinetic 840 | . . 501 254 85 Thermal 694 | 182 413 99 . . Explosive 4162 | . 473 2704 607 378 Electromagnetic 88 | . . . 88 . Impact . | . . . . . Slashing . | . . . . . Piercing . | . . . . . Highest Corruption 7 | . . 7 . . Average Corruption 7 | . . 7 . . Corruption Purged . | . . . . . Corruption Blocked . | . . . . . Effects 12 | . . 12 . . Matter Fused 5 | . . 5 . . Heat Flow Errors 2 | . . 2 . . Energy Discharges 2 | . . 2 . . Data Loss (minor) 2 | . . 2 . . Weapon Failures 1 | . . 1 . . Overload Shots . | . . . . . Overflow Damage 107 | . . 107 . . Projectiles 17 | . . 17 . . Explosions 90 | . . 90 . . Melee . | . . . . . Knockbacks 9 | . . 4 1 4 Impact . | . . . . . Kinetic 9 | . . 4 1 4 Secondary . | . . . . . Self-Inflicted Damage 16 | . . . . 16 Shots 1 | . . . . 1 Rammed . | . . . . . Targets Rammed . | . . . . . Kicked . | . . . . . Crushed . | . . . . . Highest Temperature 327 | 80 327 263 123 105 Average Temperature 59 | 35 94 30 40 44 Received Heat Transfer 1284 | . 186 351 162 585 Effects 1 | . 1 . . . Short Circuit 1 | . 1 . . . Siege Activations . | . . . . . Martial Activations . | . . . . . Shielding Activations . | . . . . . Robots Disrupted . | . . . . . Combat Hostiles . | . . . . . Robots Corrupted . | . . . . . Combat Hostiles . | . . . . . Parts Fried . | . . . . . Impact Corruptions . | . . . . . Robots Melted . | . . . . . Combat Hostiles . | . . . . . Parts Melted 2 | . 2 . . . Heat Transferred 1988 | 569 1369 50 . . Parts Sabotaged . | . . . . . Parts Stolen . | . . . . . Parts Stripped . | . . . . . Power Chain Reactions . | . . . . . Alert | -11 -10 -9 -8 -8 ------- Run | Yrd Mat Mat Mat Sto Maximum Alert Level 3 | . . 3 1 1 Low Security (%) 40 | 100 100 7 13 78 Level 1 31 | . . 29 86 21 Level 2 17 | . . 40 . . Level 3 9 | . . 22 . . Level 4 . | . . . . . Level 5 . | . . . . . High Security . | . . . . . Max Security . | . . . . . Peak Influence 739 | 5 117 739 313 304 Initial 287 | . . 27 287 99 Average 284 | . 42 497 241 144 Influence Increases 2471 | 30 385 1302 339 415 Destroy 0b10 Robot/C 920 | . 200 540 180 . Destroy 0b10 Robot/NC 160 | 30 20 95 10 5 Destroy Leader 276 | . 52 172 52 . Successful Hack 15 | . . 10 5 . Disable Machine 210 | . 15 150 30 15 Destroy Structure 455 | . 68 305 47 35 Partial Spotted 30 | . 30 . . . Lose Combat Pursuer 405 | . . 30 15 360 Influence Decreases 2167 | 30 319 688 783 347 Entered New Map 569 | . . 39 393 137 Time Decay 1468 | 30 319 589 380 150 Lost Part 130 | . . 60 10 60 Squads Dispatched 10 | . 1 4 4 1 Investigation 2 | . . 2 . . Extermination . | . . . . . Reinforcement 8 | . 1 2 4 1 Assault . | . . . . . Garrison . | . . . . . Intercept . | . . . . . Searches Triggered . | . . . . . Construction Impeded 1 | . . . . 1 Haulers Reinforced . | . . . . . Active Scanning Responses . | . . . . . Cargo Convoy Interrupts . | . . . . . Stealth | -11 -10 -9 -8 -8 --------- Run | Yrd Mat Mat Mat Sto Distress Signals 6 | . 1 2 1 2 Communications Jammed . | . . . . . Distress Signals . | . . . . . Times Spotted 106 | . 18 45 11 32 Peak Tracking Total 17 | . 3 6 4 17 Tactical Retreats 11 | . . 2 1 8 Traps | -11 -10 -9 -8 -8 ------- Run | Yrd Mat Mat Mat Sto Traps Triggered 5 | . 1 2 . 2 Indirectly . | . . . . . Trap Hack Attempts . | . . . . . Triggered . | . . . . . Disarmed 6 | . . 6 . . Reprogrammed . | . . . . . Reused . | . . . . . Traps Extracted . | . . . . . Installed . | . . . . . Triggered . | . . . . . Machines | -11 -10 -9 -8 -8 ---------- Run | Yrd Mat Mat Mat Sto Machines Disabled 14 | . 1 10 2 1 Max in Single Turn 3 | . 1 3 2 1 Machines Repaired . | . . . . . Machines Dismantled . | . . . . . Machines Sabotaged . | . . . . . Overloaded Fab Kills . | . . . . . Hacking | -11 -10 -9 -8 -8 --------- Run | Yrd Mat Mat Mat Sto Machines Accessed 15 | . 1 9 4 1 Terminals 9 | . . 7 1 1 Fabricators . | . . . . . Repair Stations 2 | . 1 . 1 . Recycling Units 2 | . . . 2 . Scanalyzers 2 | . . 2 . . Garrison Access . | . . . . . Total Hacks 43 | . 2 21 18 2 Successful 26 | . . 13 12 1 Failed 16 | . 2 7 6 1 Catastrophic . | . . . . . Database Lockouts 1 | . . 1 . . Manual . | . . . . . Terminals 19 | . . 12 5 2 Fabricators . | . . . . . Repair Stations 4 | . 2 . 2 . Recycling Units 11 | . . . 11 . Scanalyzers 9 | . . 9 . . Garrison Access . | . . . . . Terminal Hacks 10 | . . 7 2 1 Record 1 | . . 1 . . Prototype ID Bank 3 | . . 2 1 . Alert Level 2 | . . 2 . . Locate Traps 2 | . . . 1 1 Disarm Traps 1 | . . 1 . . Hauler Manifests 1 | . . 1 . . Fabricator Hacks . | . . . . . Repair Station Hacks 2 | . . . 2 . Scan Component 1 | . . . 1 . Repair 1 | . . . 1 . Recycling Unit Hacks 8 | . . . 8 . Recycle Component 2 | . . . 2 . Process 2 | . . . 2 . Report Inventory 2 | . . . 2 . Retrieve Matter 2 | . . . 2 . Scanalyzer 6 | . . 6 . . Insert Component 2 | . . 2 . . Analyze 3 | . . 3 . . Retrieve Study 1 | . . 1 . . Garrison Access Hacks . | . . . . . Unauthorized Hacks . | . . . . . Terminals . | . . . . . Fabricators . | . . . . . Repair Stations . | . . . . . Recycling Units . | . . . . . Scanalyzers . | . . . . . Garrison Access . | . . . . . Data Cores Recovered 1 | . . 1 . . Used . | . . . . . Hacking Detections 12 | . 1 6 4 1 Full Trace Events . | . . . . . Feedback Events . | . . . . . Feedback Blocked . | . . . . . Robot Schematics Acquired . | . . . . . Robots Built . | . . . . . Authchips . | . . . . . Time . | . . . . . Total Robot Build Rating . | . . . . . Part Schematics Acquired 2 | . . 2 . . Parts Built . | . . . . . Authchips . | . . . . . Time . | . . . . . Total Part Build Rating . | . . . . . Part Studies Acquired . | . . . . . Parts Repaired 1 | . . . 1 . Time 38 | . . . 38 . Parts Recycled 2 | . . . 2 . Recycled Matter 255 | . . . 255 . Retrieved Matter 255 | . . . 255 . Retrieved Components . | . . . . . Parts Scanalyzed 2 | . . 2 . . Part Schematics Acquired 2 | . . 2 . . Parts Damaged . | . . . . . Bothacking | -11 -10 -9 -8 -8 ------------ Run | Yrd Mat Mat Mat Sto Used RIF Installer . | . . . . . Robots Hacked . | . . . . . Non-combat . | . . . . . Combat . | . . . . . Robot Hacks Applied . | . . . . . Relay Couplers Released . | . . . . . Fabnet Peak Effective % . | . . . . . Robots Rewired . | . . . . . Allies Hacked . | . . . . . Hacks Repelled . | . . . . . Allies | -11 -10 -9 -8 -8 -------- Run | Yrd Mat Mat Mat Sto Total Allies . | . . . . . Largest Group . | . . . . . Highest-Rated Group . | . . . . . Highest-Rated Ally . | . . . . . Total Orders . | . . . . . Ally Attacks . | . . . . . Total Damage . | . . . . . Kills . | . . . . . Allies Corrupted . | . . . . . Allies Melted . | . . . . . Intel | -11 -10 -9 -8 -8 ------- Run | Yrd Mat Mat Mat Sto Active Infowar (turns) 4212 | 105 1074 1825 891 317 Optics 2778 | . . 1570 891 317 Sensors 834 | . . 834 . . Terrain 292 | 22 270 . . . Seismic 3003 | 105 1074 627 891 306 Robot Analysis Total . | . . . . . Derelict Logs Recovered . | . . . . . Drone Launches . | . . . . . Drone Recoveries . | . . . . . Exploration | -11 -10 -9 -8 -8 ------------- Run | Yrd Mat Mat Mat Sto Turns Passed 4288 | 166 1074 1840 891 317 Spaces Moved 3746 | 137 855 1735 732 287 Core 94 | 11 . . . 83 Treads . | . . . . . Legs . | . . . . . Wheels 3652 | 126 855 1735 732 204 Hover . | . . . . . Flight . | . . . . . Fastest Speed 50 | 50 80 80 90 50 Average Speed 86 | 77 80 86 95 82 Slowest Speed 105 | 80 80 90 105 105 Overloaded Moves . | . . . . . Propulsion Burnouts . | . . . . . Robots Hopped . | . . . . . Potential Cave-ins . | . . . . . Cave-ins Triggered 1 | . . 1 . . Exploration Rate (%) 55 | 5 98 99 20 53 Regions Visited 4 Branch Regions 1 Pre-discovered Areas . | . . . . . Known Exits Taken 3 | . 1 1 1 . Unknown Exits Taken 1 | 1 . . . . Scrap Searched . | . . . . . Spaces Dug 52 | . . 7 35 10 Terrain Destroyed 600 | . 86 378 106 30 Melee . | . . . . . Projectile 3 | . . 3 . . AOE 597 | . 86 375 106 30 Terrain Rammed . | . . . . . Walls Destroyed . | . . . . . Machines Disabled . | . . . . . Actions | -11 -10 -9 -8 -8 --------- Run | Yrd Mat Mat Mat Sto Total 4576 | 167 1182 1969 898 360 Wait 526 | . 257 96 113 60 Move 3742 | 136 854 1734 731 287 Hop . | . . . . . Pick Up 20 | 4 6 6 4 . Fast Attach 26 | 9 3 10 4 . Attach 20 | . 2 5 11 2 Detach 18 | 2 1 2 10 3 Swap 26 | 1 9 14 2 . Drop 35 | 2 11 16 4 2 Fire 163 | 13 39 86 19 6 Melee . | . . . . . Ram . | . . . . . Kick . | . . . . . Crush . | . . . . . Escape Stasis . | . . . . . Rewire . | . . . . . Trap . | . . . . . Miscellaneous . | . . . . . Route ------- -11/Scrapyard -10/Materials (discovered 5 exits: *Mat x3 / *Min / *Sub) -9/Materials (discovered 5 exits: *Mat x3 / *Min x2) -8/Materials -8/Storage History --------- Turn | Location | Event 21 | -11/Scrapyard | Discovered new exit (range 16) 167 | -11/Scrapyard | Entered Materials 306 | -10/Materials | Build established: Mutant 473 | -10/Materials | Discovered new exit (range 15) 489 | -10/Materials | Identified exit to Materials 732 | -10/Materials | Discovered new exit (range 11) 763 | -10/Materials | Identified exit to Subcaves 822 | -10/Materials | Discovered new exit (range 11) 830 | -10/Materials | Identified exit to Mines 1148 | -10/Materials | Discovered exit to Materials (range 8) 1217 | -10/Materials | Discovered exit to Materials (range 15) 1241 | -10/Materials | Entered another Materials area 1241 | -9/Materials | Evolved 2 slots: Utility x2 1263 | -9/Materials | Build established: Scavenger-Mutant 1483 | -9/Materials | Discovered new exit (range 9) 1489 | -9/Materials | Identified exit to Materials 1543 | -9/Materials | Central database locked down 1730 | -9/Materials | Discovered exit to Materials (range 8) 1809 | -9/Materials | Build established: Skirmisher 1823 | -9/Materials | Discovered new exit (range 13) 1911 | -9/Materials | Identified exit to Mines 2590 | -9/Materials | Build established: Mutant 2640 | -9/Materials | Crushed by falling debris 2671 | -9/Materials | Lost 5 parts (1p3u1w) 2766 | -9/Materials | Discovered exit to Materials (range 5) 3034 | -9/Materials | Discovered exit to Mines (range 9) 3081 | -9/Materials | Entered another Materials area 3081 | -8/Materials | Evolved 2 slots: Utility x1, Weapon x1 3166 | -8/Materials | Repaired Imp. Grenade Launcher 3270 | -8/Materials | Discovered new exit (range 18) 3534 | -8/Materials | Identified exit to Storage 3591 | -8/Materials | Build established: Bomber 3972 | -8/Materials | Entered Storage 4232 | -8/Storage | Core integrity fell below 50% 4240 | -8/Storage | Core integrity fell below 20% 4270 | -8/Storage | Lost 4 parts (1n2u1w) 4289 | -8/Storage | Destroyed by H-55 Commando with Gauss Rifle Last Messages --------------- 04191_ A bubble of electromagnetic force engulfs the area. 04191_ Door malfunctions. 04193_ Triggered EMP Trap. 04193_ A bubble of electromagnetic force engulfs the area. 04196_ K-01 Serf collects debris. 04218_ Critical hit (Burn: +37). 04222_ Flak Cannon destroyed. 04224_ Hrd. Medium Armor Plating destroyed. 04224_ Critical hit (Burn: +37). 04228_ Arm. Wheel destroyed. 04229_ Dropped Arm. Wheel. 04230_ Dropped Remote Datajack. 04236_ Slug penetrates Wall. 04239_ Penetrated by Slug. 04239_ Signal Interpreter destroyed. 04278_ Seismic Detector destroyed. 04283_ Storage Shell breached. 04286_ Slug penetrates Storage Shell. Map ----- +----------------------------------------------------+ | ????????????????????# #### ## """ # | | ????????????????????# / / # | | ????????????????????# #### ############+# | | ??????????????####### #??##/##???????# | | ??????????????# ####/######?? ???????# """ | | ?????#+######## #? ??????# """ | | ???+ # """ """?????# """ | | ?????# ##### = # """ """ ???"" | | ??????????????# ########### """ """ #??R | | ??????????????## #########??# #?""" | | ???????????????# # """"" ## ???#### ""T" | | ???????????????# # """"" #?? ????# """" | | ???????????????# # """"" #???######????####### | | ???????????????# # #???????????????????? | | ???????????????# + #???????????????????? | | ???????????????# # #???????????????????? | | ???????????????# # #???????????????????? | | ???????????????# # #???????????????????? | | ???????????????# ##### #####???????????????????? | | ???????????????# #????##???????????????????????? | | ???????????????# ###########???????????????????? | | ???????????????# # #???????????????????? | | ???????????????# # ""gh #???????????????????? | | ???????????????# # """"| #???????????????????? | | ???????????????# / "?" ! #???????????????????? | | ???????????????# # "?""@" #???????????????????? | | ???????????????# + "?"""" #???????????????????? | | ???????????????# # """ #???????????????????? | | ???????????????+ # #???????????????????? | | ???????????????##+############???????????????????? | | ?????????????????????????????????????????????????? | | ?????????????????????????????????????????????????? | | ?????????????????????????????????????????????????? | | ?????????????????????????????????????????????????? | | ?????????????????????????????????????????????????? | | ?????????????????????????????????????????????????? | | ?????????????????????????????????????????????????? | | ?????????????????????????????????????????????????? | | ?????????????????????????????????????????????????? | | ?????????????????????????????????????????????????? | | ?????????????????????????????????????????????????? | | ?????????????????????????????????????????????????? | | ?????????????????????????????????????????????????? | | ?????????????????????????????????????????????????? | | ?????????????????????????????????????????????????? | | ?????????????????????????????????????????????????? | | | | | | | | | +----------------------------------------------------+ Best States ------------- Heat Dissipation 31 Energy Generation 14 Energy Capacity 280 Matter Stores 300 Matter Capacity 300 Sight Range 18 Robot Scan Range 14 Terrain Scan Range 16 Terrain Scan Density 10 Armor Coverage 225 Resistance: EX 25 Utility Shielding 33 Weapon Shielding 33 Evasion (%) 50 Targeting Accuracy 5 Item Schematics ----------------- Imp. Grenade Launcher | -9/Materials | Scanalyzed Signal Interpreter | -9/Materials | Scanalyzed Robot Schematics ------------------ None Fabricated ------------ Nothing Repaired ---------- Imp. Grenade Launcher | 9% | -8/Materials Studied --------- None Alien Tech Used ----------------- None Achievements -------------- Ghost 'Em Challenges ------------ None Game ------ Seed MeleeHardenedBlasthammer Manual? 0 Play Time 01:07:05 Cumulative 33.7 hours Start 2026.02.12 @ 00:20:36 End 2026.02.12 @ 01:27:00 Sessions 1 Manual Loads 0 Difficulty Rogue Special Mode None Game No. 37 Rogue 37 Adventurer 0 Explorer 0 Win Type - Total 0 Types 0/0/0/0/0/0/0/0/0/0 Lore% 16 Gallery% 15 Achievement% 14 Wizard Run 0 Options --------- Layout 1 ASCII 0 Keyboard 1 Movement Numpad Keybinds 0 Fullscreen 2 Font 24/Cog Map View 50x35 Zoom Use 0% Tactical HUD 1 Map Filters NONE Filters NONE Steam 1 RUN: 38dde08a-db8d-42f0-96ac-9a416b2d29b3